{"text_format":"1","workbook":"xlsx","n_sheets":3,"sheets":["Foaie1","Foaie2","Foaie3"],"not_rendered":{"charts":0,"images":0,"macros":0,"external_links":0,"defined_names":0,"comments":0,"pivot_tables":0},"unopened":[],"bounds":{"document_bytes":16777216,"sheet_cells":100000,"rows_first":2000,"rows_last":500,"rows_between":2000,"halvings":0,"cell_chars":16384,"cell_head_chars":4096},"cells_cut":0,"cells_raw":0,"read":"whole","date_system":"1900"}

{"sheet":"Foaie1","index":0,"n_rows":66,"n_cols":7,"rows_kept":66,"cut":false,"hidden":false,"merged":[[3,0,3,6],[4,0,4,6],[51,0,51,1],[6,1,6,6],[7,1,7,6]]}
[null,null,null,null,null,null,"Anexa nr. 3.3 la contractul de finantare nr…………./2018."]
[]
[]
["BUGETUL DE VENITURI ȘI CHELTUIELI AL PROGRAMULUI/PROIECTULUI/ACȚIUNII CULTURALE"]
["                                          A KULTURÁLIS PROGRAM/PROJEKT/RENDEZVÉNY KÖLTSÉGVETÉSE                                        -lei-"]
["Denumirea Solicitantului (a pályázó neve)"]
["Titlul manifestării culturale (a kulturális tevékenység címe)"]
["Data/Perioada și locul desfășurării (a lebonyolítás dátuma/időszaka és helyszíne)"]
["Denumirea indicatorilod (mutatók megnevezése)","TOTAL","Tranșa 1"]
["VENITURI TOTAL (Bevétel)",{"$f":"B11+B16+B21","v":0},{"$f":"SUM(C11+C16+C21)","v":0}]
["1. Contribuția beneficiarului /asociației /fundației /organizației neguvernamentale (a+b+c+d) (A pályázó hozzájárulása)",{"$f":"SUM(B12:B15)","v":0},{"$f":"SUM(C12:C15)","v":0}]
["?",{"$f":"SUM(C12:E12)","v":0},0]
["b. alte surse - specificați (más forrás - kérjük megnevezni)",{"$f":"SUM(C13:E13)","v":0},0]
["c. alte surse - specificați (más forrás - kérjük megnevezni)",{"$f":"SUM(C14:E14)","v":0},0]
["d. alte surse - specificați (más forrás - kérjük megnevezni)",{"$f":"SUM(C15:E15)","v":0},0]
["2. Finanțări nerambursabile primite în temeiul O.G. nr. 51/1998, cu comp. și mod. ult. (e+f+g+h) (Vissza nem térítendő támogatás)",{"$f":"SUM(B17:B20)","v":0},{"$f":"SUM(C17:C20)","v":0}]
["e. de la bugetul de stat (állami költségvetésből)",{"$f":"SUM(C17:E17)","v":0},0]
["f. de la Consiliul Județean Harghita (Hargita Megye Tanácsának költségvetéséből)",{"$f":"SUM(C18:E18)","v":0},0]
["g. de la bugetul Consiliului Local (Helyi tanács költségvetéséből)",{"$f":"SUM(C19:E19)","v":0},0]
["h. altă autoritate finanțatoare (más hatóságtól)",{"$f":"SUM(C20:E20)","v":0},0]
["3. Dobânzi aferente disponibilităților în cont, provenite din subvenții (a bankszámlán lévő támogatási összegekből származó kamatok)",{"$f":"SUM(C21:E21)","v":0},0]
["CHELTUIELI TOTAL (Kiadás)","TOTAL","Consiliul local Cristuru Secuiesc ",null,null,"Alte finanțări nerambursabile (conform O.G. 51/1998) más pályázati támogatás az 51/1998 Kormányrendelet értelmében","Alte surse (más források)"]
[]
["TOTAL",{"$f":"SUM(B25+B33+B37+B40+B47+B51)","v":0},{"$f":"SUM(C25+C33+C37+C40+C47+C51)","v":0},null,null,{"$f":"SUM(F25+F33+F37+F40+F47+F51)","v":0},{"$f":"SUM(G25+G33+G37+G40+G47+G51)","v":0}]
["a. Cheltuieli de realizare a programului/proiectului/acțiunii (Megvalósítási költségek)",{"$f":"SUM(B26:B32)","v":0},{"$f":"SUM(C26:C32)","v":0},null,null,{"$f":"SUM(F26:F32)","v":0},{"$f":"SUM(G26:G32)","v":0}]
["a.1. costuri materiale și servicii (anyagi és szolgáltatási költségek)",{"$f":"SUM(C26:G26)","v":0},0,null,null,0,0]
["a.2. costuri de producție (gyártási, termelési költségek)",0,0,null,null,0,0]
["a.3. închirieri de spații și aparatură (terem- és felszerelésbérlés)",0,0,null,null,0,0]
["a.4. onorarii (honorárium, tiszteletdíj)",0,0,null,null,0,0]
["a.5. prestări servicii (szolgáltatások)",0,0,null,null,0,0]
["a.6. premii (díjak)",0,0,null,null,0,0]
["a.7. alte - se va nominaliza (más - megnevezve)",0,0,null,null,0,0]
["b. Achiziționarea de dotări necesare derulării programului sau proiectului - (max. 20% din totalul finanțării nerambursabile acordate) - A program megvalósításához szükséges felszerelés beszerzése (max. 20% a jóváhagyott támogatási összegből)",{"$f":"SUM(B34:B36)","v":0},{"$f":"SUM(C34:C36)","v":0},null,null,{"$f":"SUM(F34:F36)","v":0},{"$f":"SUM(G34:G36)","v":0}]
["b. 1. se va nominaliza (megnevezve)",{"$f":"SUM(C34:G34)","v":0},0,null,null,0,0]
["b. 2. se va nominaliza (megnevezve)",{"$f":"SUM(C35:G35)","v":0},0,null,null,0,0]
["b. 3. se va nominaliza (megnevezve)",{"$f":"SUM(C36:G36)","v":0},0,null,null,0,0]
["c. Cheltuieli ocazionate de cazare și transport intern și internațional ale participanților/invitaților (szállás, nemzetközi és belföldi személyszállítás)",{"$f":"SUM(B38:B39)","v":0},{"$f":"SUM(C38:C39)","v":0},null,null,{"$f":"SUM(F38:F39)","v":0},{"$f":"SUM(G38:G39)","v":0}]
["c.1. cazare (szállás)",{"$f":"SUM(C38:G38)","v":0},0,null,null,0,0]
["c.2. transport (szállítás)",{"$f":"SUM(C39:G39)","v":0},0,null,null,0,0]
["d. Alte cheltuieli specifice (más sajátos kiadások)",{"$f":"SUM(B41:B45)","v":0},{"$f":"SUM(C41:C45)","v":0},null,null,{"$f":"SUM(F41:F45)","v":0},{"$f":"SUM(G41:G45)","v":0}]
["d.1. realizarea de studii și cercetări (kutatások, tanulmányok)",{"$f":"SUM(C41:G41)","v":0},0,null,null,0,0]
["d.2. consultanță de specialitate (szaktanácsadás)",0,0,null,null,0,0]
["d.3. tipărituri (nyomtatványok)",0,0,null,null,0,0]
["d.4. seminarii, conferințe, ateliere de lucru (tanácskozások, konferenciák, műhelyek)",0,0,null,null,0,0]
["d.5. acțiuni promoționale și de publicitate (népszerűsítés és reklám)",0,0,null,null,0,0]
["e. Cheltuieli de masă ale participanților/invitaților (étkeztetés)",0,0,null,null,0,0]
["f. Diurnă, acordată în condițiile legii (Napidíj, a törvény szerint)",0,0,null,null,0,0]
["g. Cheltuieli de personal și cheltuieli administrative, aferente perioadei de realizare a programului/proiectului/acțiunii (személyzeti és adminisztrációs költségek a program idejére)",{"$f":"SUM(B49:B50)","v":0},{"$f":"SUM(C49:C50)","v":0},null,null,{"$f":"SUM(F49:F50)","v":0},{"$f":"SUM(G49:G50)","v":0}]
["g.1. cheltuieli de personal (személyzeti költség)",{"$f":"SUM(C49:G49)","v":0},0,null,null,0,0]
["g.2. cheltuieli administrative (ügyviteli/ adminisztrációs költség)",{"$f":"SUM(C50:G50)","v":0},0,null,null,0,0]
["e.+g. Cheltuielile prevăzute la lit. e.+g. = max. 20% din totalul finanțării nerambursabile acordate (e.+g.= max. 20%-a a jóváhagyott támogatási összegnek)",{"$f":"SUM(B46+B48)","v":0},{"$f":"SUM(C46+C48)","v":0},null,null,{"$f":"SUM(F46+F48)","v":0},{"$f":"SUM(G46+G48)","v":0}]
[]
[{"$f":"IF(B10=B24,\"-\",\"Eroare Hiba Total Venituri NU este egal cu Total Cheltuieli. Corectati! Tessek kijavitani!\")","v":"-"}]
[{"$f":"IF(B11>=B10*0.2,\"-\",\"Eroare Hiba Contributia Beneficiarului NU atinge proportia minima de 20% din suma totala. Corectati! Tessek kijavitani!\")","v":"-"}]
[{"$f":"IF(B11=SUM(F24:G24),\"-\",\"Eroare Hiba Venituri din Contr. Beneficiarului NU este egal cu Cheltuieli Alte finantari+Alte surse. Corectati! Tessek kijavitani!\")","v":"-"}]
[{"$f":"IF(C33<=B18*0.2,\"-\",\"Eroare Hiba Suma pt. achizitionare dotar depaseste 20% din totalul finantarii CJHR. Corectati! Tessek kijavitani!\")","v":"-"}]
[{"$f":"IF(C51<=B18*0.2,\"-\",\"Suma Cheltuieli e.+g. depaseste 20% din totalul finantarii CJHR. Corectati! Tessek kijavitani!\")","v":"-"}]
[]
["Reprezentant legal al solicitantului (a pályázó törvényes képviselője)"]
["Numele și prenumele (conform B.I./C.I.) (Családnév, keresztnév a személyi igazolvány szerint)"]
[]
[null,null,"Semnătura (Aláírás)"]
[]
[null,null,"L. S. "]
[null,null,"Ștampila (Pecsét)"]
["Data (Keltezés): "]

{"sheet":"Foaie2","index":1,"n_rows":0,"n_cols":0,"rows_kept":0,"cut":false,"hidden":false,"merged":[]}

{"sheet":"Foaie3","index":2,"n_rows":0,"n_cols":0,"rows_kept":0,"cut":false,"hidden":false,"merged":[]}